bitfinex-derivatives/quotes_ETHF0:USTF0_20250831
["timestamp","ask_amount","ask_price","bid_price","bid_amount"]
[1756681633263,0.2774,4435.0,4434.9,0.4893]
[1756681633464,0.4751,4435.0,4434.9,0.4893]
[1756681634060,3.2078,4435.4,4435.0,0.3045]
[1756681634263,3.6829,4435.4,4435.3,0.4893]
[1756681634467,0.1977,4434.4,4434.3,0.4893]
[1756681634770,0.4751,4434.4,4434.3,0.7243]
[1756681635466,3.4055,4434.9,4434.8,0.1848]
[1756681635664,3.6829,4434.9,4434.5,0.3045]
[1756681635870,3.6829,4434.9,4434.8,0.4893]
[1756681637066,3.4055,4434.9,4434.8,0.4893]
[1756681637469,0.1977,4434.9,4434.8,0.4893]
[1756681637775,0.4751,4434.8,4434.7,0.235]
[1756681637970,0.4751,4434.8,4434.7,0.7243]
[1756681638772,0.4751,4434.8,4434.7,0.235]
[1756681641271,0.4751,4434.8,4434.1,0.3045]
[1756681641476,0.4751,4434.8,4434.2,0.235]
[1756681641873,0.1977,4434.2,4434.1,0.3045]
[1756681642175,0.1977,4434.2,4434.1,0.235]
[1756681642575,0.4751,4434.2,4434.1,0.235]
[1756681643174,0.4751,4434.2,4433.6,0.3045]
[1756681643367,0.4751,4434.2,4433.7,0.235]
[1756681643775,0.4751,4434.2,4433.7,0.3045]
[1756681643975,1.58279673,4437.0,4433.5,32.482]
[1756681643976,0.4751,4433.6,4433.5,32.482]
[1756681644167,0.4751,4433.6,4433.5,32.717]
[1756681645277,0.4751,4433.6,4433.5,32.7865]
[1756681645467,0.4751,4433.6,4433.5,33.0215]
[1756681652880,3.4852,4433.9,4433.8,0.1848]
[1756681653077,3.6829,4433.9,4433.8,0.7243]
[1756681653480,3.2078,4433.9,4433.8,0.7243]
[1756681654382,3.2078,4434.6,4434.5,0.4893]
[1756681654686,3.2078,4434.6,4434.5,0.7243]
[1756681657180,3.4055,4434.6,4434.5,0.7243]
[1756681657486,3.6829,4434.6,4434.5,0.7243]
[1756681657883,3.4055,4434.6,4434.5,0.7243]
[1756681658082,3.2078,4435.1,4434.6,0.2936]
[1756681658384,3.405,4435.1,4435.0,0.4972]
[1756681658587,3.405,4435.1,4435.0,0.7322]
[1756681658782,3.7021,4435.1,4435.0,0.7322]
[1756681660886,0.1972,4434.0,4433.9,0.2936]
[1756681661086,0.4943,4434.0,4433.9,0.5286]
[1756681661286,0.4943,4434.0,4433.9,0.7322]
[1756681661682,0.4943,4434.0,4433.9,0.4972]
[1756681661979,3.405,4434.0,4433.9,0.235]
[1756681662184,3.405,4434.0,4433.5,32.482]
[1756681662486,0.1972,4433.7,4433.6,0.235]
[1756681662881,0.4943,4433.7,4433.6,0.235]
[1756681663180,0.4943,4433.7,4433.6,0.7322]
[1756681663380,0.4943,4433.7,4433.6,0.4972]
[1756681663577,0.1972,4433.7,4433.6,0.235]
[1756681664283,0.4943,4433.7,4433.6,0.235]
[1756681664488,0.1972,4433.7,4433.5,32.482]
[1756681664689,0.2971,4433.6,4433.5,32.482]
[1756681664885,0.2971,4433.6,4433.5,32.717]
[1756681665785,0.2971,4433.6,4433.5,32.482]
[1756681665984,0.2971,4433.6,4433.5,32.717]
[1756681666387,0.2971,4433.6,4433.5,32.482]
[1756681666587,0.2971,4433.6,4433.5,32.717]
[1756681667089,0.2971,4433.6,4433.5,32.482]
[1756681667392,0.2971,4433.6,4433.5,32.717]
[1756681667989,0.2971,4433.6,4433.5,33.0106]
[1756681668492,0.4943,4433.6,4433.5,0.7322]
[1756681668698,0.4943,4433.6,4433.5,0.4386]
[1756681669787,0.4943,4433.6,4433.5,0.7322]
[1756681671392,0.4943,4433.6,4432.9,0.2936]
[1756681671693,3.7021,4433.0,4432.8,0.089]
[1756681671891,3.7021,4433.0,4432.9,0.235]
[1756681672188,3.7021,4433.0,4432.8,0.089]
[1756681672393,3.7021,4433.0,4432.9,0.235]
[1756681673696,3.7021,4433.0,4432.9,0.7322]
[1756681674290,3.7021,4433.0,4432.8,0.089]
[1756681674495,3.405,4433.0,4432.8,0.089]
[1756681674697,0.4943,4432.9,4432.8,0.089]
[1756681675597,0.4943,4432.9,4432.8,0.324]
[1756681676794,0.4943,4432.9,4432.8,0.8212]
[1756681677392,0.1972,4432.9,4432.8,0.8212]
[1756681677699,0.4943,4432.9,4432.8,0.8212]
[1756681678598,0.4943,4432.9,4432.8,0.324]
[1756681680200,0.4943,4432.9,4432.8,0.8212]
[1756681685305,3.2078,4433.0,4432.9,0.2936]
[1756681685497,3.2078,4433.0,4432.9,0.4972]
[1756681686093,3.7021,4433.0,4432.9,0.4972]
[1756681686298,3.405,4433.0,4432.9,0.4972]
[1756681686805,3.7021,4433.0,4432.9,0.4972]
[1756681687007,3.7021,4433.0,4432.9,0.7322]
[1756681687414,3.7021,4433.0,4432.9,0.235]
[1756681688112,3.7021,4433.0,4432.9,0.72]
[1756681689513,3.7021,4433.0,4432.8,0.089]
[1756681689710,3.7021,4433.0,4432.9,0.235]
[1756681690714,3.7021,4433.0,4432.9,0.72]
[1756681690914,3.2078,4433.0,4432.9,0.72]
[1756681691107,3.6836,4433.0,4432.9,0.72]
[1756681691311,3.6836,4433.0,4432.9,0.235]
[1756681691810,3.6836,4433.0,4432.9,0.4383]
[1756681692010,3.6836,4433.0,4432.9,0.72]
[1756681694306,3.6836,4433.0,4432.9,0.4383]
[1756681695918,3.6836,4433.0,4432.9,0.72]
[1756681698017,3.2078,4433.0,4432.9,0.72]
[1756681698212,0.1127,4433.2,4432.9,0.72]
[1756681698213,0.1127,4433.2,4433.1,0.2033]
[1756681698415,0.1127,4433.2,4433.1,0.485]
[1756681698719,0.1127,4433.2,4433.1,4.71057]
[1756681700927,0.1127,4433.2,4433.1,4.485]
[1756681701722,0.1127,4433.2,4433.1,4.574]
[1756681703725,3.2078,4433.6,4433.1,4.574]
[1756681703925,3.2078,4433.6,4433.5,0.485]
[1756681704119,3.2078,4433.6,4433.5,0.72]
[1756681704524,3.2078,4434.1,4433.5,0.4383]
[1756681704824,3.6836,4434.1,4434.0,0.485]
[1756681705023,3.6836,4434.1,4434.0,0.72]
[1756681705723,3.2078,4434.1,4434.0,0.72]
[1756681707926,3.2078,4434.1,4434.0,0.809]
[1756681708420,3.2078,4434.7,4434.6,0.2033]
[1756681708625,3.2078,4434.7,4434.6,0.72]
[1756681709127,3.6836,4434.7,4434.6,0.72]
[1756681710628,0.4758,4434.7,4434.6,0.72]
[1756681710827,3.6836,4434.7,4434.6,0.72]
[1756681713130,0.4758,4434.7,4434.6,0.99305541]
[1756681713631,3.4025,4435.2,4435.1,0.485]
[1756681713931,3.6836,4435.2,4435.1,0.719]
[1756681714824,1.18301214,4438.0,4435.1,0.719]
[1756681714825,3.4889,4435.7,4435.2,0.2817]
[1756681715030,3.6836,4435.7,4435.6,0.485]
[1756681715231,3.6836,4435.7,4435.6,0.808]
[1756681715429,0.4758,4435.7,4435.6,0.808]
[1756681717623,0.2811,4436.0,4435.7,0.2817]
[1756681717934,0.4758,4436.0,4435.9,0.5014]
[1756681718535,0.1947,4436.0,4435.9,0.5904]
[1756681718832,3.69,4436.2,4436.1,0.2039]
[1756681719128,3.69,4436.7,4436.6,0.2039]
[1756681719429,0.4822,4437.2,4437.1,0.2039]
[1756681719628,0.4822,4437.2,4437.1,0.4379]
[1756681719934,0.4822,4437.2,4437.1,0.736]
[1756681720930,3.2078,4437.3,4437.1,0.736]
[1756681721132,3.69,4437.3,4437.2,0.502]
[1756681721822,3.3981,4437.3,4437.2,0.502]
[1756681722027,3.2078,4437.3,4437.2,0.502]
[1756681722432,3.2078,4437.3,4437.2,0.591]
[1756681723029,0.2919,4437.5,4437.2,0.2929]
[1756681723230,0.4822,4437.5,4437.4,0.502]
[1756681724238,0.1903,4437.5,4437.4,0.591]
[1756681724736,0.4822,4437.5,4437.4,0.591]
[1756681727634,0.4822,4437.5,4437.4,0.089]
[1756681728236,0.4822,4437.5,4437.4,0.2929]
[1756681728538,0.4822,4437.5,4437.4,0.591]
[1756681729834,7.69,4437.5,4437.4,0.089]
[1756681730033,7.69,4437.5,4437.4,0.323]
[1756681730230,7.69,4437.5,4436.3,3.5059]
[1756681730430,0.3599,4436.5,4436.4,0.736]
[1756681730834,0.3599,4436.5,4435.2,3.7]
[1756681730835,0.3599,4436.5,4435.7,3.2078]
[1756681731041,0.3599,4435.9,4435.8,32.9931]
[1756681732436,0.3599,4435.9,4435.8,32.695]
[1756681733443,0.3599,4435.9,4435.8,32.9931]
[1756681733940,0.3599,4435.9,4435.8,32.695]
[1756681737840,0.3599,4435.9,4435.8,32.461]
[1756681738040,0.3599,4435.9,4435.8,32.695]
[1756681739147,0.3599,4435.9,4435.8,32.9931]
[1756681739946,3.3981,4436.0,4435.9,0.2039]
[1756681740245,3.5677,4436.0,4435.9,0.2981]
[1756681740443,0.1696,4435.9,4435.8,32.461]
[1756681740642,4.39503001,4435.9,4435.8,32.461]
[1756681740847,4.1696,4435.9,4435.8,32.695]
[1756681741050,4.3599,4435.9,4435.8,0.234]
[1756681742846,0.3599,4435.9,4435.8,0.234]
[1756681743549,4.0,4435.9,4434.5,0.2981]
[1756681743847,0.1696,4435.2,4434.7,0.2981]
[1756681744249,0.3599,4435.2,4435.1,0.502]
[1756681744447,0.3599,4435.2,4435.1,0.736]
[1756681746146,3.2078,4435.3,4435.2,0.2981]
[1756681746546,3.2078,4435.3,4435.2,0.502]
[1756681747054,3.2078,4435.8,4435.2,0.2039]
[1756681747350,3.2078,4435.8,4435.7,0.502]
[1756681747551,3.2078,4435.8,4435.7,0.736]
[1756681749053,3.3981,4435.8,4435.7,0.736]
[1756681749254,3.5684,4435.8,4435.7,0.736]
[1756681749949,3.5684,4435.8,4434.7,0.2873]
[1756681749950,0.1703,4435.7,4434.7,0.2873]
[1756681750258,0.184,4435.0,4434.9,0.4869]
[1756681750557,0.3543,4435.0,4434.9,0.7209]
[1756681751148,3.2078,4435.2,4434.9,0.7209]
[1756681751346,3.5621,4435.2,4435.1,0.1996]
[1756681751550,3.5621,4435.2,4435.1,0.4869]
[1756681751752,3.2078,4435.2,4435.1,0.4869]
[1756681752062,3.2078,4435.8,4435.7,0.4869]
[1756681752354,3.3918,4435.8,4435.7,0.7209]
[1756681752758,3.5621,4435.8,4435.7,0.7209]
[1756681753158,3.5621,4435.8,4435.7,0.234]
[1756681755259,3.5621,4435.8,4435.7,0.5213]
[1756681755653,3.5621,4435.8,4435.7,0.234]
[1756681756059,3.5621,4435.8,4435.7,0.7209]
[1756681762761,3.2078,4435.8,4435.7,0.7209]
[1756681763062,0.1703,4436.2,4435.8,0.2873]
[1756681763262,3.2078,4436.4,4436.3,0.1996]
[1756681763465,3.2078,4436.4,4436.3,0.4869]
[1756681763764,3.2078,4436.9,4436.8,0.1996]
[1756681763969,3.2078,4436.9,4436.8,0.7209]
[1756681765170,3.2078,4437.7,4436.8,4.65898999]
[1756681765366,3.5604,4437.7,4437.6,0.4869]
[1756681765567,3.5604,4437.7,4437.6,0.7209]
[1756681766268,3.3918,4437.7,4437.6,0.7209]
[1756681766467,3.5604,4437.7,4437.6,0.7209]
[1756681768570,3.5604,4437.7,4437.6,0.234]
[1756681768969,0.1686,4436.3,4436.1,0.2873]
[1756681769166,0.3526,4436.2,4436.1,0.2873]
[1756681769366,0.3526,4436.2,4436.1,0.234]
[1756681769770,0.3526,4436.2,4436.1,0.7209]
[1756681770876,0.184,4436.2,4436.1,0.7209]
[1756681771173,0.3526,4436.3,4436.2,0.4869]
[1756681776273,0.184,4436.3,4436.0,32.7563]
[1756681776483,0.3526,4436.1,4436.0,32.469]
[1756681776671,0.3526,4436.1,4436.0,32.703]
[1756681778372,0.3526,4436.1,4436.0,33.0066]
[1756681780680,0.1691,4436.7,4436.0,32.703]
[1756681780883,0.3628,4436.7,4436.6,0.4986]
[1756681781070,0.1937,4436.7,4436.6,0.7316]
[1756681781275,0.3628,4436.7,4436.6,0.7316]
[1756681782380,0.3628,4436.7,4436.6,0.233]
[1756681782779,0.1691,4436.6,4436.2,0.3036]
[1756681782975,3.2078,4436.8,4436.0,32.469]
[1756681782976,0.1937,4436.2,4436.1,0.4986]
[1756681783177,3.2078,4436.3,4436.1,0.233]
[1756681783379,0.1937,4436.2,4436.1,0.233]
[1756681783783,0.3628,4436.2,4436.1,0.233]
[1756681788785,0.3628,4436.2,4435.2,0.3036]
[1756681788786,0.1691,4436.1,4435.2,0.3036]
[1756681788980,0.233,4436.7,4435.2,0.3036]
[1756681788981,3.2078,4435.5,4435.3,0.233]
[1756681789181,3.5706,4435.5,4435.4,0.4986]
[1756681791287,0.3628,4435.2,4435.1,32.698]
[1756681792380,0.3628,4435.2,4435.1,0.233]
[1756681793088,0.1937,4435.2,4434.9,0.233]
[1756681793384,0.1937,4435.0,4434.9,0.233]
[1756681793587,0.3628,4435.0,4434.9,0.233]
[1756681793785,0.1691,4435.4,4435.1,0.3036]
[1756681794082,0.3628,4435.4,4435.3,0.4986]
[1756681794583,3.5706,4435.5,4435.4,0.3036]
[1756681794784,3.5706,4435.5,4435.4,0.4986]
[1756681795780,3.2078,4435.5,4435.4,0.4986]
[1756681796481,2.9015,4435.5,4435.4,4.72406]
[1756681796686,2.9015,4435.5,4435.4,4.4986]
[1756681797279,2.9015,4435.5,4435.4,4.7316]
[1756681797780,0.4859,4436.4,4436.3,0.195]
[1756681797982,3.2078,4436.5,4436.3,0.195]
[1756681798185,3.2078,4436.5,4436.4,0.4986]
[1756681799385,3.4015,4436.5,4436.4,0.4986]
[1756681799781,3.6937,4436.5,4436.4,0.4986]
[1756681799976,0.4859,4435.9,4435.8,0.4986]
[1756681800175,0.4859,4435.9,4435.8,0.428]
[1756681800583,0.4859,4435.9,4435.8,0.7316]
[1756681800978,0.2922,4436.4,4435.9,0.3036]
[1756681801183,0.1937,4436.0,4435.9,0.4986]
[1756681801383,0.4859,4436.0,4435.9,0.4986]
[1756681801582,0.4859,4436.0,4435.9,0.195]
[1756681801787,0.4859,4436.0,4435.7,0.233]
[1756681801788,3.6937,4436.0,4435.7,0.233]
[1756681802189,0.2922,4435.9,4435.6,0.233]
[1756681802384,0.4859,4435.7,4435.6,0.428]
[1756681802589,0.4859,4435.7,4435.6,0.7316]
[1756681802786,0.4859,4435.7,4435.6,0.428]
[1756681802987,0.4859,4435.7,4435.6,0.233]
[1756681803492,0.4859,4435.7,4435.6,0.7316]
[1756681803683,0.1937,4435.7,4435.6,0.7316]
[1756681803890,3.2078,4436.0,4435.6,0.428]
[1756681804086,3.2078,4436.0,4435.9,0.195]
[1756681804282,3.4015,4436.0,4435.9,0.4986]
[1756681804486,3.2078,4436.0,4435.9,0.4986]
[1756681804797,3.4015,4436.0,4435.9,0.4986]
[1756681805095,3.6937,4436.0,4435.9,0.4986]
[1756681805487,3.6937,4436.0,4435.9,0.195]
[1756681806690,3.4015,4436.0,4434.7,3.2078]
[1756681806894,0.4859,4434.0,4433.9,2.8266934]
[1756681807086,0.1937,4433.5,4433.4,0.4986]
[1756681807287,0.1937,4433.5,4433.3,0.233]
[1756681807288,0.4859,4433.5,4433.3,0.233]
[1756681807483,0.67289345,4433.4,4433.3,0.233]
[1756681807988,0.67869345,4433.4,4433.3,0.233]
[1756681808587,0.67869345,4433.4,4433.3,0.7026]
[1756681808791,0.18699345,4433.4,4433.3,0.7026]
[1756681808988,0.298,4434.0,4433.4,0.2794]
[1756681809184,0.18686084,4433.9,4433.3,0.233]
[1756681809388,0.4864,4433.9,4433.8,0.1902]
[1756681809593,0.68382496,4433.9,4433.8,0.1902]
[1756681809789,0.49542496,4433.9,4433.8,0.4696]
[1756681809995,0.38582496,4433.9,4433.8,0.4696]
[1756681810297,0.68382496,4433.9,4433.8,0.4696]
[1756681810493,0.19742496,4433.9,4433.8,0.4696]
[1756681812392,0.19732386,4433.9,4433.8,0.4696]
[1756681813400,0.19730596,4433.9,4433.8,0.4696]
[1756681813699,3.2078,4434.1,4433.8,0.4696]
[1756681813894,0.19728682,4434.0,4433.9,0.4696]
[1756681816206,0.38563893,4434.0,4433.9,0.4696]
[1756681817594,0.19723893,4434.0,4433.9,0.4696]
[1756681817793,0.19723893,4434.0,4433.9,7.90293]
[1756681817995,0.4864,4435.0,4434.9,0.4696]
[1756681818195,0.68364795,4435.0,4434.9,0.7026]
[1756681818705,0.19724795,4435.0,4434.9,0.7026]
[1756681818905,0.38564795,4435.0,4434.9,0.7026]
[1756681819100,0.68364795,4435.0,4434.9,0.7026]
[1756681819304,0.19724795,4435.0,4434.9,0.7026]
[1756681821803,3.2078,4435.8,4435.7,0.4696]
[1756681822002,3.88732266,4435.8,4435.7,0.7026]
[1756681822204,3.40092266,4435.8,4435.7,0.7026]
[1756681822705,3.58932266,4435.8,4435.7,0.7026]
[1756681823001,0.19312266,4435.8,4435.7,0.7026]
[1756681823206,3.2078,4436.5,4435.7,0.7026]
[1756681823403,0.19311062,4436.4,4436.3,0.1902]
[1756681823603,0.19311062,4436.4,4436.3,0.7026]
[1756681823807,3.2078,4436.5,4436.3,0.4232]
[1756681823995,0.19306386,4436.4,4436.3,0.7026]
[1756681824195,3.5058,4437.2,4436.3,0.7026]
[1756681824400,0.38147361,4437.1,4437.0,0.1902]
[1756681824599,0.67947361,4437.1,4437.0,0.7026]
[1756681827805,0.67947361,4437.1,4437.0,0.4232]
[1756681830406,0.67910177,4437.1,4437.0,0.7026]
[1756681830807,0.19270177,4437.1,4437.0,0.7026]
[1756681831207,3.2078,4437.2,4437.1,0.2794]
[1756681831408,3.88688217,4437.2,4437.1,0.4696]
[1756681831710,3.6942,4437.2,4437.1,0.4696]
[1756681834216,0.298,4437.1,4436.6,0.2794]
[1756681834415,0.4864,4436.7,4436.6,0.4696]
[1756681834610,3.3962,4436.7,4435.9,3.4872]
[1756681834820,0.4864,4436.0,4435.9,0.4696]
[1756681835014,0.4864,4436.0,4435.9,0.7026]
[1756681835215,0.4864,4436.0,4435.9,0.4696]
[1756681835409,0.298,4436.6,4436.0,0.2794]
[1756681835616,3.2078,4436.7,4436.6,0.4696]
[1756681836014,3.3962,4436.7,4436.6,0.4696]
[1756681836214,3.6942,4436.7,4436.1,0.2794]
[1756681836519,3.6942,4436.7,4436.6,0.233]
[1756681837915,3.6942,4436.7,4436.1,0.2794]
[1756681838112,3.3962,4436.7,4436.3,0.2775]
[1756681838314,0.4689,4436.6,4436.5,0.4715]
[1756681838713,0.4689,4436.6,4436.5,0.194]
[1756681839114,0.2806,4436.5,4436.2,0.5105]
[1756681839416,0.4689,4436.3,4436.2,0.7045]
[1756681839810,3.2078,4436.7,4436.3,0.2775]
[1756681840015,3.3961,4436.7,4436.6,0.4715]
[1756681840215,3.3961,4436.7,4436.6,0.194]
[1756681840422,3.6767,4436.7,4436.3,0.2775]
[1756681840919,0.4689,4436.0,4435.9,0.4715]
[1756681841115,0.4689,4436.0,4435.9,0.7045]
[1756681847124,0.4689,4436.0,4435.9,0.4715]
[1756681847326,0.4689,4435.7,4435.6,0.4715]
[1756681847526,0.4689,4435.7,4435.6,0.7045]
[1756681848629,0.4689,4435.7,4435.6,0.4715]
[1756681848828,0.4689,4435.7,4435.6,0.7045]
[1756681849331,0.66135968,4435.7,4435.6,0.7045]
[1756681850224,0.66135968,4435.7,4435.6,0.233]
[1756681850427,0.66135968,4435.7,4435.5,32.478]
[1756681850428,0.2806,4435.6,4435.5,32.478]
[1756681850733,0.47305968,4435.6,4435.5,32.711]
[1756681851628,0.66135968,4435.6,4435.5,0.233]
[1756681853027,0.19245968,4435.6,4435.5,0.7045]
[1756681853227,0.19265544,4435.8,4435.7,0.194]
[1756681853432,0.19265544,4435.8,4435.7,0.4715]
[1756681854034,0.19262312,4435.8,4435.7,0.4715]
[1756681855432,0.18990683,4435.8,4435.7,0.4715]
[1756681855737,3.2078,4436.6,4435.7,0.194]
[1756681855935,3.6767,4436.6,4436.5,0.4715]
[1756681856139,3.6767,4436.6,4436.5,0.7045]
[1756681860848,3.2078,4436.6,4436.5,0.7045]
[1756681861243,3.2078,4437.1,4436.6,0.2775]
[1756681861442,3.2078,4437.1,4436.5,0.427]
[1756681861443,3.6767,4437.1,4437.0,0.4715]
[1756681863855,3.2078,4437.1,4437.0,0.4715]
[1756681864047,3.6767,4437.1,4437.0,0.4715]
[1756681864246,3.2078,4437.1,4437.0,0.4715]
[1756681864746,0.233,4438.3,4437.4,0.4715]
[1756681864747,0.4689,4437.5,4437.4,0.4715]
[1756681864947,0.4689,4437.5,4437.4,0.7045]
[1756681865543,0.1883,4437.5,4437.4,0.7045]
[1756681865744,3.2078,4437.6,4437.5,0.2775]
[1756681865942,0.2806,4437.8,4437.7,0.194]
[1756681866238,0.2806,4437.8,4437.4,0.233]
[1756681866239,0.2806,4438.0,4437.4,0.233]
[1756681866446,3.2078,4438.1,4438.0,0.4715]
[1756681866643,3.3961,4438.1,4438.0,0.7045]
[1756681866844,3.2078,4438.1,4438.0,0.7045]
[1756681867342,3.6767,4438.1,4438.0,0.7045]
[1756681867738,3.6767,4438.1,4437.2,3.2078]
[1756681867945,0.2036,4437.3,4437.2,3.4049]
[1756681868144,0.4845,4437.3,4437.2,3.6379]
[1756681868343,0.4845,4437.3,4437.2,3.9274]
[1756681869152,3.2078,4438.1,4437.3,0.2895]
[1756681869352,0.2809,4438.0,4437.9,0.1971]
[1756681869649,0.4845,4438.0,4437.9,0.4866]
[1756681869951,3.2078,4438.1,4438.0,0.4866]
[1756681870156,3.2078,4438.1,4438.0,0.7196]
[1756681870448,3.4114,4438.1,4438.0,0.7196]
[1756681870648,3.6923,4438.1,4438.0,0.7196]
[1756681871554,3.2078,4438.1,4438.0,0.7196]
[1756681872257,3.4114,4438.1,4438.0,0.7196]
[1756681872457,3.6923,4438.1,4438.0,0.7196]
[1756681872658,3.2078,4438.1,4438.0,0.7196]
[1756681872857,3.4114,4438.1,4438.0,0.7196]
[1756681873156,3.6923,4438.1,4438.0,0.7196]
[1756681874252,0.4845,4438.1,4438.0,0.7196]
[1756681884364,0.4845,4438.1,4438.0,0.4866]
[1756681884564,0.4845,4438.1,4438.0,0.7186]
[1756681886571,0.4845,4438.1,4438.0,0.4866]
[1756681886772,0.4845,4438.1,4438.0,0.7186]
[1756681888971,0.2036,4438.1,4438.0,0.7186]
[1756681889168,0.4845,4438.1,4438.0,0.7186]
[1756681889864,3.4887,4438.8,4438.1,0.2895]
[1756681890469,0.4845,4438.2,4438.1,0.4866]
[1756681890767,0.4845,4438.7,4438.6,0.4866]
[1756681891076,0.4845,4439.3,4439.2,0.4866]
[1756681891260,0.4845,4439.3,4439.2,0.7186]
[1756681891868,0.4845,4439.3,4439.2,0.232]
[1756681892269,0.4845,4438.4,4438.3,0.4866]
[1756681892466,0.4845,4438.4,4438.3,0.7186]
[1756681893470,0.4845,4438.4,4438.3,0.4866]
[1756681893774,0.4845,4438.4,4438.3,0.232]
[1756681894169,0.4845,4438.4,4437.9,0.2895]
[1756681894372,0.4845,4438.1,4438.0,0.232]
[1756681894670,0.4845,4437.6,4437.5,3.4049]
[1756681894974,0.4845,4437.0,4436.9,32.464]
[1756681895274,0.4845,4437.0,4436.9,32.696]
[1756681895463,0.4845,4437.0,4436.9,32.9855]
[1756681896574,0.4845,4437.0,4436.9,32.464]
[1756681896875,0.4845,4437.0,4436.9,32.9855]
[1756681897777,0.2036,4437.0,4436.9,32.9855]
[1756681897969,0.4674,4437.3,4437.2,0.1971]
[1756681898170,0.4674,4437.3,4437.2,0.232]
[1756681899573,0.1865,4437.3,4436.9,32.464]
[1756681899777,0.4671,4437.0,4436.9,32.464]
[1756681900074,0.4671,4437.0,4436.9,32.696]
[1756681900469,0.2806,4437.6,4437.0,0.2779]
[1756681900669,0.2806,4437.6,4437.1,0.232]
[1756681900869,0.4671,4437.2,4437.1,0.4662]
[1756681901086,0.4671,4437.2,4437.1,0.6982]
[1756681901781,0.1865,4437.2,4437.1,0.6982]
[1756681901973,0.2806,4437.8,4437.2,0.2779]
[1756681902271,0.1865,4437.8,4437.7,0.4662]
[1756681902470,0.1865,4437.8,4437.7,0.6982]
[1756681902775,0.4671,4437.8,4437.7,0.6982]
[1756681902971,3.2078,4438.2,4437.7,0.6982]
[1756681903179,0.4671,4438.1,4438.0,0.1883]
[1756681903475,0.4671,4438.1,4438.0,0.6982]
[1756681905875,0.1865,4438.1,4438.0,0.6982]
[1756681906177,0.4671,4438.2,4438.1,0.4662]
[1756681908776,0.4671,4438.2,4438.1,0.6982]
[1756681909885,0.4671,4438.2,4438.1,0.4662]
[1756681910081,0.4671,4438.2,4438.1,0.6982]
[1756681910381,3.2078,4438.3,4438.2,0.2779]
[1756681910577,3.2078,4438.8,4438.4,0.1883]
[1756681910776,3.2078,4438.8,4438.7,0.2779]
[1756681910979,3.2078,4438.8,4438.7,0.6982]
[1756681913077,0.2806,4439.3,4438.8,0.2779]
[1756681913280,0.2806,4439.3,4438.7,0.4203]
[1756681913281,0.4671,4439.3,4439.2,0.4662]
[1756681915477,0.4671,4439.3,4438.8,0.2779]
[1756681916083,0.4671,4439.3,4438.7,0.232]
[1756681916284,0.4671,4439.3,4438.8,0.2779]
[1756681916676,0.4671,4439.3,4438.7,0.232]
[1756681916879,0.4671,4439.3,4438.1,3.2078]
[1756681916880,0.1865,4439.3,4438.1,3.2078]
[1756681917085,0.1865,4438.4,4438.3,0.4662]
[1756681917281,0.1865,4438.4,4438.3,0.6982]
[1756681918082,0.1865,4438.4,4437.7,0.2779]
[1756681918282,0.232,4439.4,4437.7,0.4662]
[1756681918283,0.1865,4437.8,4437.7,0.4662]
[1756681918480,0.4671,4437.8,4437.7,0.6982]
[1756681921190,0.4671,4437.8,4437.7,0.4662]
[1756681921489,0.4671,4437.8,4437.7,0.6982]
[1756681923197,3.2078,4438.2,4438.1,0.2779]
[1756681923496,0.2806,4439.1,4438.2,0.2779]
[1756681923701,0.4671,4439.1,4439.0,0.4662]
[1756681925297,0.1865,4439.1,4438.9,0.232]
[1756681925497,0.4671,4439.0,4438.9,0.6982]
[1756681925996,0.1865,4439.0,4438.9,0.6982]
[1756681926197,0.4671,4439.0,4438.9,0.6982]
[1756681928205,0.1865,4439.0,4438.9,0.6982]
[1756681928705,0.4833,4439.0,4438.9,0.6982]
[1756681930509,0.4833,4439.0,4438.9,0.232]
[1756681930704,4.4833,4439.0,4438.1,0.3016]
[1756681930909,0.4992,4437.7,4437.6,0.4905]
[1756681931110,3.2078,4438.4,4437.6,0.4209]
[1756681931309,0.4992,4438.3,4438.2,0.1889]
[1756681931609,3.2078,4438.4,4438.3,0.4905]
[1756681932703,3.4102,4438.4,4438.3,0.4905]
[1756681932898,3.707,4438.4,4438.0,0.3016]
[1756681933109,3.707,4438.4,4438.3,0.232]
[1756681933809,0.4992,4438.3,4438.2,0.7225]
[1756681935504,0.4992,4438.3,4438.2,0.232]
[1756681935706,0.4992,4438.3,4438.2,0.7225]
[1756681936915,0.4992,4438.3,4438.2,0.4905]
[1756681937310,0.4992,4438.3,4438.2,0.7225]
[1756681937511,0.4992,4438.3,4438.2,0.4209]
[1756681938317,0.4992,4438.3,4438.2,0.7225]
[1756681940317,0.4992,4438.3,4438.2,0.4905]
[1756681940517,0.4992,4438.3,4438.2,0.7225]
[1756681941616,0.4992,4438.3,4438.2,0.4905]
[1756681941818,0.4992,4438.3,4438.2,0.7225]
[1756681948722,0.4992,4438.3,4438.2,0.4905]
[1756681948928,0.4992,4438.3,4438.2,0.7225]
[1756681950224,0.4992,4438.3,4437.5,3.2078]
[1756681950431,0.4992,4437.7,4437.6,0.7225]
[1756681950831,0.4992,4437.7,4437.6,0.4905]